bitfinex/quotes_ETHUSD_20250905
["timestamp","ask_amount","ask_price","bid_price","bid_amount"]
[1757077591375,0.7656,4476.1,4476.0,3.88113762]
[1757077591583,2.30967,4476.1,4475.6,4.028]
[1757077591781,2.23419041,4475.9,4475.3,5.674]
[1757077592087,0.3079,4475.4,4475.3,5.674]
[1757077592264,0.7656,4475.4,4475.3,1.646]
[1757077592485,2.0997,4475.4,4474.9,2.2346868]
[1757077592653,1.7918,4475.3,4474.9,4.027]
[1757077592857,0.3079,4475.0,4474.9,4.027]
[1757077593187,2.0997,4475.0,4474.9,4.027]
[1757077593660,2.0997,4475.0,4474.8,0.025]
[1757077593856,1.3341,4474.9,4474.8,0.025]
[1757077594060,1.7918,4474.9,4474.8,0.025]
[1757077594262,2.0997,4474.9,4474.8,0.025]
[1757077594456,2.0997,4474.9,4474.8,0.026]
[1757077594859,4.3343868,4474.9,4474.8,0.026]
[1757077595059,4.99128444,4474.9,4474.8,0.026]
[1757077595763,7.99128444,4474.9,4474.8,0.026]
[1757077597496,12.01728444,4474.9,4474.8,0.026]
[1757077597884,7.3343868,4474.9,4474.8,0.026]
[1757077598072,11.3603868,4474.9,4474.8,0.026]
[1757077598981,7.3343868,4474.9,4474.8,0.026]
[1757077599377,7.4455868,4474.9,4474.8,0.026]
[1757077600592,5.2109,4474.9,4474.8,0.026]
[1757077600785,7.4455868,4474.9,4474.8,0.026]
[1757077600985,8.81610477,4474.9,4474.8,0.026]
[1757077602796,9.60810477,4474.9,4474.8,1e-08]
[1757077603100,3.02708638,4474.1,4474.0,0.001]
[1757077603276,11.95823266,4474.1,4474.0,0.001]
[1757077603610,14.02473266,4474.1,4474.0,0.001]
[1757077605289,14.02373266,4474.1,4474.0,0.001]
[1757077606007,3.1112,4474.0,4473.8,0.026]
[1757077606176,2.23543613,4473.4,4473.3,0.001]
[1757077606378,9.57423613,4473.4,4473.3,0.001]
[1757077606578,11.32493613,4473.4,4473.3,0.001]
[1757077608625,3.0,4473.4,4473.3,0.001]
[1757077608919,9.25843613,4473.4,4473.3,0.001]
[1757077609211,11.1714141,4473.4,4473.3,0.001]
[1757077609614,12.4743141,4473.4,4473.3,0.001]
[1757077609908,10.8556141,4473.4,4473.3,0.001]
[1757077610084,10.7236141,4473.4,4473.3,0.001]
[1757077610278,10.8556141,4473.4,4473.3,0.001]
[1757077610678,6.3848141,4473.4,4473.3,0.001]
[1757077610895,9.25843613,4473.4,4473.3,0.001]
[1757077611314,10.02203613,4473.4,4473.3,0.001]
[1757077612192,11.32493613,4473.4,4473.3,0.001]
[1757077612393,10.02203613,4473.4,4473.3,0.001]
[1757077612597,9.25743613,4473.4,4473.3,0.001]
[1757077612984,10.4514945,4473.4,4473.3,0.001]
[1757077613314,10.7662945,4473.4,4473.3,0.001]
[1757077613492,11.2140945,4473.4,4473.3,0.001]
[1757077613912,12.5169945,4473.4,4473.3,0.001]
[1757077615196,13.4226041,4473.4,4473.3,0.001]
[1757077615930,13.4218041,4473.4,4473.3,0.001]
[1757077616814,0.792,4472.9,4472.8,1e-08]
[1757077617130,3.02798595,4472.3,4472.2,1e-08]
[1757077617332,7.36378595,4472.3,4472.2,1e-08]
[1757077617535,9.11448595,4472.3,4472.2,1e-08]
[1757077618022,12.11448595,4472.3,4472.2,1e-08]
[1757077618315,13.3631866,4472.3,4472.2,1e-08]
[1757077619217,9.43282919,4472.3,4472.2,1e-08]
[1757077619390,13.45182919,4472.3,4472.2,1e-08]
[1757077619998,12.14892919,4472.3,4472.2,1e-08]
[1757077620386,6.57432919,4472.3,4472.2,1e-08]
[1757077620587,9.34462854,4472.3,4472.2,1e-08]
[1757077620838,2.32562854,4472.3,4472.2,1e-08]
[1757077621139,6.25498595,4472.3,4472.2,1e-08]
[1757077621298,9.25498595,4472.3,4472.2,1e-08]
[1757077621690,12.11348595,4472.3,4472.2,1e-08]
[1757077622333,8.09448595,4472.3,4472.2,1e-08]
[1757077622638,12.11348595,4472.3,4472.2,1e-08]
[1757077623453,6.34378595,4472.3,4472.2,1e-08]
[1757077623590,10.10722391,4472.3,4472.2,1e-08]
[1757077623796,12.20212391,4472.3,4472.2,1e-08]
[1757077625226,10.89922391,4472.3,4472.2,1e-08]
[1757077625421,6.88122391,4472.3,4472.2,1e-08]
[1757077625621,6.08922391,4472.3,4472.2,1e-08]
[1757077625824,6.25298595,4472.3,4472.2,1e-08]
[1757077626029,4.017,4472.3,4472.2,0.10570001]
[1757077626344,1.648,4473.7,4472.2,1.23220001]
[1757077626497,2.23560074,4473.1,4472.3,0.18932]
[1757077626699,3.22,4473.0,4472.4,1.1265]
[1757077627001,4.017,4472.9,4472.4,3.36241419]
[1757077627222,4.017,4472.9,4472.8,0.1057]
[1757077627636,3.0,4472.8,4472.2,1e-08]
[1757077627945,2.23598595,4472.3,4472.2,1e-08]
[1757077628144,9.25298595,4472.3,4472.2,1e-08]
[1757077628514,7.017,4472.3,4472.2,1e-08]
[1757077628703,9.25298595,4472.3,4472.2,1e-08]
[1757077629316,9.97568595,4472.3,4472.2,1e-08]
[1757077629604,9.97568595,4472.3,4471.8,0.026]
[1757077629605,2.23618596,4471.9,4471.8,0.026]
[1757077629836,3.792,4471.8,4469.9,1.1265]
[1757077630055,2.23663609,4471.0,4469.3,1.1265]
[1757077630205,9.25268612,4470.9,4469.4,2.23740388]
[1757077630406,9.25268612,4470.9,4469.4,2.23743229]
[1757077630641,9.68178612,4470.9,4469.3,1.1265]
[1757077630817,10.25438612,4470.9,4469.3,1.1265]
[1757077631014,9.25268612,4470.9,4469.7,0.0661]
[1757077631213,9.25268612,4470.9,4469.8,1.1265]
[1757077631430,11.26588612,4470.9,4469.1,1.1926]
[1757077631942,12.05788612,4470.9,4469.5,0.1112]
[1757077632105,12.05788612,4470.9,4469.1,1.1265]
[1757077632311,12.05788612,4470.9,4469.2,0.1112]
[1757077632518,12.05788612,4470.9,4469.2,2.34869708]
[1757077633040,12.05788612,4470.9,4469.2,0.1112]
[1757077633735,0.792,4470.3,4468.5,1.1265]
[1757077633937,3.0,4470.4,4468.5,1.1265]
[1757077633938,2.23764271,4469.0,4468.5,1.1265]
[1757077634137,4.014,4468.9,4468.4,0.1112]
[1757077634308,6.25173985,4468.8,4468.4,0.1112]
[1757077634509,4.014,4468.7,4468.4,0.1773]
[1757077634743,4.014,4468.7,4468.4,0.1112]
[1757077634943,4.014,4468.7,4468.6,0.1057]
[1757077635958,0.1112,4469.2,4468.6,0.1057]
[1757077636143,3.0,4469.0,4468.6,0.1057]
[1757077636347,4.014,4468.9,4468.7,1.0789]
[1757077636547,4.014,4468.9,4468.8,0.1057]
[1757077637251,4.014,4468.9,4468.4,0.1112]
[1757077637556,3.0,4468.8,4468.4,0.1112]
[1757077637731,5.23786356,4468.6,4467.6,1.0789]
[1757077637935,3.0,4468.4,4468.2,0.1112]
[1757077638234,3.0,4468.4,4468.3,0.1057]
[1757077638436,3.0,4468.4,4468.3,1.1846]
[1757077638824,4.013,4468.6,4468.3,1.2507]
[1757077639153,4.013,4468.6,4468.4,1.2562]
[1757077639352,4.013,4468.6,4468.5,1.1846]
[1757077639753,4.013,4468.6,4468.5,0.1057]
[1757077640726,4.013,4468.6,4468.4,0.1112]
[1757077640926,4.013,4468.6,4468.2,0.1112]
[1757077641366,0.1112,4468.9,4468.2,0.1112]
[1757077641666,3.0,4468.7,4468.2,0.1112]
[1757077642057,2.23792299,4468.5,4468.2,0.1112]
[1757077642365,3.0,4468.3,4468.2,0.1112]
[1757077642930,5.2379876,4468.3,4468.2,0.1112]
[1757077643126,6.68037158,4468.3,4468.2,0.1112]
[1757077643340,3.1112,4468.2,4467.0,0.001]
[1757077643565,0.1112,4467.6,4467.0,0.001]
[1757077643858,5.23765014,4467.4,4467.0,0.001]
[1757077644070,2.23849574,4467.3,4467.0,0.001]
[1757077644265,2.23833058,4467.7,4467.3,0.1057]
[1757077644471,6.25033922,4467.6,4467.0,0.001]
[1757077644669,2.23849609,4467.3,4467.0,0.001]
[1757077644879,6.24953868,4467.2,4467.0,0.001]
[1757077645327,10.39361895,4467.2,4467.0,0.001]
[1757077645764,11.38041895,4467.2,4467.0,0.001]
[1757077645927,11.62123868,4467.2,4467.0,0.001]
[1757077646124,12.91173868,4467.2,4467.0,0.001]
[1757077647354,5.23858879,4467.1,4467.0,0.001]
[1757077647759,3.03073914,4466.8,4466.5,0.001]
[1757077647958,2.23883938,4466.6,4466.5,0.001]
[1757077648132,9.54343938,4466.6,4466.5,0.001]
[1757077648331,11.26303938,4466.6,4466.5,0.001]
[1757077648642,7.40156081,4466.6,4466.5,0.001]
[1757077648829,7.15952143,4466.6,4466.5,0.001]
[1757077649032,10.12106081,4466.6,4466.5,0.001]
[1757077649233,9.69196081,4466.6,4466.5,0.001]
[1757077649429,10.12106081,4466.6,4466.5,0.001]
[1757077649661,10.68886081,4466.6,4466.5,0.001]
[1757077649964,3.14952143,4466.6,4466.5,0.001]
[1757077650161,9.39836081,4466.6,4466.5,0.001]
[1757077650734,10.12106081,4466.6,4466.5,0.001]
[1757077651061,12.64754196,4466.6,4466.5,0.001]
[1757077651528,8.63754196,4466.6,4466.5,0.001]
[1757077651732,12.64754196,4466.6,4466.5,0.001]
[1757077655241,2.23893963,4466.4,4466.2,0.001]
[1757077655455,2.23914017,4466.0,4465.9,0.001]
[1757077655762,11.58642327,4466.0,4465.9,0.001]
[1757077655933,12.14481827,4466.0,4465.9,0.001]
[1757077656134,13.43531827,4466.0,4465.9,0.001]
[1757077656664,11.42211827,4466.0,4465.9,0.001]
[1757077657044,11.85121827,4466.0,4465.9,0.001]
[1757077657242,4.01843517,4466.0,4465.9,0.1067]
[1757077657565,5.788295,4466.0,4465.9,0.1067]
[1757077657765,11.02743517,4466.0,4465.9,0.1067]
[1757077658086,8.788295,4466.0,4465.9,0.1067]
[1757077658280,1.779295,4466.0,4465.9,0.1067]
[1757077658486,5.787295,4466.0,4465.9,0.1067]
[1757077658668,8.02643517,4466.0,4465.9,0.001]
[1757077658865,5.05610516,4466.0,4465.9,0.001]
[1757077659066,8.787295,4466.0,4465.9,0.1067]
[1757077659377,0.129295,4466.0,4465.9,1.1742]
[1757077659545,0.063195,4466.0,4465.9,4.2277822]
[1757077659744,0.063195,4466.0,4465.9,1.1742]
[1757077659977,8.16073517,4466.0,4465.9,0.001]
[1757077660180,9.821113,4466.0,4465.9,0.001]
[1757077660482,7.071195,4466.0,4465.9,0.001]
[1757077660646,7.369595,4466.0,4465.9,0.001]
[1757077660848,9.31033517,4466.0,4465.9,0.001]
[1757077661052,7.071195,4466.0,4465.9,0.001]
[1757077661262,3.063195,4466.0,4465.9,0.001]
[1757077661582,9.30933517,4466.0,4465.9,0.001]
[1757077661745,7.070195,4466.0,4465.9,0.001]
[1757077662841,9.30933517,4466.0,4465.9,0.001]
[1757077663548,10.06313517,4466.0,4465.9,0.001]
[1757077663891,12.76175385,4466.0,4465.8,0.025]
[1757077664173,17.89427777,4465.9,4465.8,0.025]
[1757077664347,6.37614283,4465.9,4465.8,0.025]
[1757077664552,7.13695253,4465.9,4465.8,0.025]
[1757077664735,9.37614283,4465.9,4465.8,0.025]
[1757077664940,9.37614283,4465.9,4465.8,0.0266]
[1757077664941,7.13695253,4465.9,4465.8,0.0266]
[1757077665141,9.37614283,4465.9,4465.8,0.025]
[1757077665840,7.13595253,4465.9,4465.8,0.0266]
[1757077666642,9.37514283,4465.9,4465.8,0.0266]
[1757077667069,9.37514283,4465.9,4465.8,0.025]
[1757077667236,0.12995253,4465.9,4465.8,1.0601]
[1757077667635,0.12995253,4465.9,4465.8,0.0266]
[1757077667840,0.12995253,4465.9,4465.8,0.025]
[1757077668051,2.36914283,4465.9,4465.8,0.025]
[1757077668246,7.42634283,4465.9,4465.8,0.025]
[1757077668447,6.73628706,4465.9,4465.8,0.025]
[1757077668645,9.37414283,4465.9,4465.8,0.025]
[1757077668847,10.12794283,4465.9,4465.8,0.026]
[1757077669168,11.43134283,4465.9,4465.8,0.026]
[1757077669577,10.12794283,4465.9,4465.8,0.026]
[1757077669873,12.6770217,4465.9,4465.8,0.026]
[1757077670382,10.4378314,4465.9,4465.3,0.001]
[1757077670692,10.4378314,4465.9,4462.8,0.025]
[1757077670693,2.24014963,4464.0,4462.8,0.025]
[1757077670974,5.87901496,4463.9,4462.8,0.025]
[1757077671179,2.24059568,4463.1,4462.8,0.025]
[1757077671386,0.19237921,4463.9,4463.8,0.0432]
[1757077671611,0.19157921,4463.9,4463.8,1.1037]
[1757077671743,0.19157921,4463.9,4463.8,1.0767]
[1757077672306,0.19157921,4463.9,4463.8,3.34394373]
[1757077672536,0.19157921,4463.9,4463.8,0.60162971]
[1757077672807,0.19157921,4463.9,4463.8,0.0432]
[1757077672967,0.19157921,4463.9,4463.4,2.24042171]
[1757077673299,0.19157921,4463.9,4463.8,2.28344373]
[1757077673541,0.19157921,4463.9,4463.8,3.34394373]
[1757077675069,0.19157921,4463.9,4463.8,3.31694373]
[1757077675273,0.19157921,4463.9,4463.8,4.15834616]
[1757077675505,0.19157921,4463.9,4463.8,4.79821352]
[1757077675670,0.19157921,4463.9,4463.8,4.77581109]
[1757077675870,0.19157921,4463.9,4463.8,9.63881109]
[1757077676292,0.19157921,4463.9,4463.8,10.43081109]
[1757077677080,0.19157921,4463.9,4463.8,10.53081109]
[1757077678103,0.19157921,4463.9,4463.8,10.50381109]
[1757077678302,0.025,4464.8,4464.7,2.23979214]
[1757077678707,0.025,4464.8,4464.7,3.33889006]
[1757077679006,0.025,4464.8,4464.7,5.23986927]
[1757077679208,0.025,4464.8,4464.7,5.21747135]
[1757077679568,0.025,4464.8,4464.7,4.15697135]
[1757077679905,0.025,4464.8,4464.7,4.97136927]
[1757077680202,0.025,4464.8,4464.7,6.00947135]
[1757077680706,0.025,4465.8,4465.7,2.23929059]
[1757077681008,0.025,4465.8,4465.7,7.25921965]
[1757077681302,0.4804,4465.8,4465.6,1.65]
[1757077681509,0.2984,4465.7,4464.8,1.65]
[1757077681708,0.7538,4465.7,4464.8,1.65]
[1757077681872,0.7538,4465.7,4464.9,4.104]
[1757077682289,0.7538,4465.7,4464.9,4.004]
[1757077682606,0.7538,4465.7,4465.2,2.23949895]
[1757077682806,1.3284,4465.8,4464.9,7.05545882]
[1757077682807,0.025,4465.8,4464.9,4.81577204]
[1757077683107,0.025,4465.8,4465.3,2.23947274]
[1757077683274,0.025,4465.8,4465.1,2.2395736]
[1757077683474,0.4554,4465.7,4464.9,0.81177204]
[1757077683824,0.4554,4465.7,4463.9,0.027]
[1757077683825,1.7588,4465.6,4464.4,4.004]
[1757077683988,2.23939088,4465.5,4464.4,4.004]
[1757077684188,0.4554,4465.4,4464.5,2.23989248]
[1757077684504,2.26424528,4465.8,4464.7,2.23979214]
[1757077684706,1.7588,4465.7,4464.0,1.65]
[1757077685014,2.23972325,4464.9,4464.1,4.004]
[1757077685312,3.4554,4465.4,4464.2,0.02240043]
[1757077685482,3.0,4465.5,4464.9,2.23968029]
[1757077685804,3.0,4465.6,4464.9,2.23965806]
[1757077685992,5.6947696,4465.6,4464.1,0.792]
[1757077686194,2.23982948,4464.7,4464.1,4.004]
[1757077686398,3.4554,4464.6,4464.1,4.004]
[1757077686577,0.025,4465.8,4464.5,0.0432]
[1757077686780,0.4804,4465.8,4465.0,2.23960066]
[1757077686977,0.4554,4465.7,4464.5,2.23987777]
[1757077687312,0.025,4465.8,4464.5,2.23988199]
[1757077687313,4.7588,4465.6,4464.5,2.23988199]
[1757077687500,2.2396844,4465.0,4464.0,1.65]
[1757077687698,0.4554,4465.1,4464.2,2.240043]
[1757077688008,0.4554,4465.1,4464.6,0.001]
[1757077688179,0.2984,4464.7,4464.6,0.001]
[1757077688380,1.7588,4465.0,4464.6,0.001]
[1757077688712,0.4554,4465.0,4464.6,2.2408348]
[1757077688877,2.23958234,4465.2,4464.6,0.44908123]
[1757077689074,5.23954134,4465.2,4464.6,0.001]
[1757077689312,0.3078,4464.7,4464.6,0.001]
[1757077689510,1.2088,4465.1,4464.6,0.001]
[1757077689683,3.0,4465.4,4464.6,0.001]
[1757077689684,3.0,4465.4,4464.6,0.0442]
[1757077689877,0.3078,4464.7,4464.6,0.001]
[1757077690376,1.9835,4464.7,4464.6,0.001]
[1757077690791,4.22329214,4464.7,4464.6,0.001]
[1757077691007,1.9835,4464.7,4464.6,0.001]
[1757077691230,7.42164214,4464.7,4464.6,0.001]
[1757077691724,9.07164214,4464.7,4464.6,0.001]
[1757077693005,13.07464214,4464.7,4464.6,0.001]
[1757077694926,9.07164214,4464.7,4464.6,0.001]
[1757077695128,8.87329214,4464.7,4464.6,0.001]
[1757077695332,1.65,4464.7,4464.6,0.001]
[1757077695495,5.653,4464.7,4464.6,0.001]
[1757077696122,8.653,4464.7,4464.6,0.001]
[1757077696331,4.65,4464.7,4464.6,0.001]
[1757077696856,0.1112,4465.0,4464.6,0.0442]
[1757077697442,2.23949118,4465.3,4464.7,0.22840853]
[1757077697604,3.0,4465.4,4464.7,0.22840853]
[1757077697605,3.0,4465.4,4464.7,2.46816037]
[1757077697933,3.0,4465.4,4464.9,2.23968178]
[1757077698095,3.0,4465.4,4464.7,0.22840853]
[1757077698296,3.0,4465.4,4464.6,0.001]
[1757077698637,3.0,4465.2,4464.6,0.001]
[1757077698846,0.3078,4464.7,4464.6,0.001]
[1757077699233,4.4699,4465.1,4464.6,0.001]
[1757077699429,2.23974174,4464.9,4464.6,0.001]
[1757077699745,3.0,4464.9,4464.6,0.001]
[1757077699948,4.003,4465.4,4464.8,2.28289533]
[1757077700113,4.67811586,4465.7,4464.9,0.45237232]
[1757077700445,5.23939089,4465.5,4464.6,0.001]
[1757077700646,2.23963527,4465.1,4464.7,0.1112]
[1757077700948,2.23979214,4464.7,4464.6,0.001]
[1757077701247,6.24279214,4464.7,4464.6,0.001]
[1757077701412,8.22629214,4464.7,4464.6,0.001]
[1757077701614,2.70669214,4464.7,4464.6,0.001]
[1757077701843,2.23979214,4464.7,4464.6,0.001]
[1757077702024,5.23979214,4464.7,4464.6,0.001]
[1757077702213,5.70669214,4464.7,4464.6,0.001]
[1757077702416,5.23979214,4464.7,4464.6,0.001]
[1757077702744,5.32940879,4465.0,4464.6,0.001]
[1757077703050,0.4669,4465.1,4464.6,0.0442]
[1757077703051,4.002,4465.1,4464.6,0.0442]
[1757077703265,0.4669,4464.9,4464.6,0.001]
[1757077703446,5.54759214,4464.7,4464.6,0.001]
[1757077703643,9.54959214,4464.7,4464.6,0.001]
[1757077703846,7.002,4464.7,4464.6,0.001]
[1757077704047,10.01649214,4464.7,4464.6,0.001]
[1757077704425,11.22529214,4464.7,4464.6,0.001]
[1757077704657,12.10906639,4464.7,4464.6,0.001]
[1757077704966,10.91749214,4464.7,4464.6,0.001]
[1757077705163,11.22529214,4464.7,4464.6,0.001]
[1757077706065,8.9855,4464.7,4464.6,0.001]
[1757077706372,9.24179214,4464.7,4464.6,0.001]
[1757077706534,5.23979214,4464.7,4464.6,0.001]
[1757077706737,0.002,4464.8,4464.6,0.001]
[1757077707060,4.002,4464.7,4464.6,0.001]
[1757077707763,7.01649214,4464.7,4464.6,0.001]
[1757077707940,12.15111309,4464.7,4464.6,0.001]
[1757077711844,12.94311309,4464.7,4464.6,0.001]
[1757077713166,0.1112,4464.6,4462.8,0.025]
[1757077713375,3.0,4464.2,4462.8,0.025]
[1757077713541,2.0549,4464.1,4462.8,0.025]
[1757077713766,2.24069551,4462.9,4462.8,0.025]
[1757077713966,1.651,4463.3,4462.1,0.9791]
[1757077714189,5.24064402,4463.1,4462.8,0.0432]
[1757077714356,3.0,4463.1,4462.8,0.0432]
[1757077714561,4.651,4463.3,4462.8,3.49144759]
[1757077714786,1.651,4463.3,4462.8,0.27160351]
[1757077715089,2.24061945,4463.1,4462.8,0.0432]
[1757077715399,3.0,4463.2,4462.0,0.9791]
[1757077715575,3.0,4463.2,4462.2,2.26801606]
[1757077715771,3.0,4463.2,4463.1,0.0432]
[1757077716095,5.24054505,4463.2,4462.5,2.24088791]
[1757077716298,3.0,4463.8,4463.1,0.0432]
[1757077716499,2.2403943,4463.5,4463.1,0.0432]
[1757077716801,2.24064585,4463.0,4462.2,2.24100565]
[1757077717001,6.24164585,4463.0,4462.2,2.24100565]
[1757077717302,6.24164585,4463.0,4461.8,1.0041]
[1757077717303,4.001,4463.0,4461.8,1.0041]
[1757077717468,4.001,4463.0,4462.0,0.26551]
[1757077717814,0.4669,4462.9,4461.8,0.025]
[1757077718102,2.24101165,4462.3,4461.8,0.025]
[1757077718305,7.001,4462.5,4461.8,0.025]
[1757077718505,2.24109724,4462.1,4461.8,0.025]
[1757077718706,2.24114746,4462.0,4461.8,0.025]
[1757077719205,2.24119769,4461.9,4461.8,0.025]
[1757077720198,3.0,4462.1,4461.8,0.025]
[1757077720703,2.24119769,4461.9,4461.8,0.025]
[1757077720905,2.24109876,4462.1,4461.8,0.025]
[1757077721090,3.0,4462.3,4461.8,0.025]
[1757077721396,2.24119769,4461.9,4461.8,0.025]
[1757077721693,0.4645,4462.3,4461.8,0.025]
[1757077721865,2.55389769,4461.9,4461.8,0.025]
[1757077722366,6.55489769,4461.9,4461.8,0.025]
[1757077722567,7.01939769,4461.9,4461.8,0.025]
[1757077723196,10.01939769,4461.9,4461.8,0.025]
[1757077723406,12.29504001,4461.9,4461.8,0.025]
[1757077724395,5.24119769,4461.9,4461.8,0.025]
[1757077724596,9.24219769,4461.9,4461.8,0.025]
[1757077724799,4.001,4462.0,4461.8,0.0682]
[1757077724985,4.001,4462.0,4461.8,0.025]
[1757077725169,2.55389769,4461.9,4461.8,0.025]
[1757077725370,4.001,4461.9,4461.8,0.026]
[1757077725575,1.651,4462.1,4461.8,0.0692]
[1757077725789,4.001,4462.0,4461.8,0.0692]
[1757077726011,3.0,4462.1,4461.8,0.0692]
[1757077726168,2.241043,4462.3,4461.8,0.0692]
[1757077726365,3.0,4462.1,4461.8,0.0692]
[1757077726668,1.651,4462.9,4461.8,0.0692]
[1757077726883,2.2408276,4462.7,4461.9,2.24119766]
[1757077727081,3.0,4462.7,4461.9,0.54955447]
[1757077727280,2.9992,4462.7,4461.9,2.24119769]
[1757077727505,0.67352238,4463.3,4462.6,0.0432]
[1757077727713,2.24146496,4465.4,4463.7,2.24029392]
[1757077727877,0.11891176,4465.3,4463.7,4.32197147]
[1757077728078,0.002,4465.3,4463.7,5.95770856]
[1757077728276,3.76663973,4465.1,4463.7,5.90830563]
[1757077728567,0.4915,4464.8,4463.7,3.10482808]
[1757077729202,2.23985505,4464.6,4463.7,3.10482808]
[1757077729398,2.23979231,4464.7,4463.7,2.28349392]
[1757077729700,2.2399542,4464.4,4463.6,1.651]
[1757077729870,0.4645,4464.5,4463.6,1.651]
[1757077730276,0.4645,4464.5,4463.7,2.28349392]
[1757077730687,0.4645,4464.5,4463.6,1.651]
[1757077730974,2.2399997,4464.3,4463.6,1.651]
[1757077731402,2.24005681,4464.2,4463.6,1.651]
[1757077731598,2.23994638,4464.4,4463.6,1.651]
[1757077731902,2.24010145,4464.1,4463.6,1.651]
[1757077732099,2.0041,4463.7,4462.8,1.651]
[1757077732299,2.24043092,4463.5,4462.8,1.651]
[1757077732505,2.24043092,4463.5,4462.7,2.24077755]
[1757077732809,1.6914,4463.7,4462.1,1.651]
[1757077732810,0.4645,4463.4,4462.1,1.651]
[1757077732971,1.2269,4463.7,4462.7,2.24075526]
[1757077733171,1.2269,4463.7,4462.2,0.792]
[1757077733172,5.2404082,4463.5,4462.4,2.24093022]
[1757077733392,1.2269,4463.7,4462.7,2.24077133]
[1757077733592,2.24039649,4463.5,4462.6,2.24083852]
[1757077733794,1.2269,4463.7,4462.2,0.792]
[1757077733970,0.025,4463.8,4463.6,0.0432]
[1757077734912,0.025,4463.8,4463.7,0.112]
[1757077735275,0.025,4463.8,4463.7,0.1552]
[1757077735505,0.025,4463.8,4463.7,0.112]
[1757077735807,3.04244373,4463.8,4463.7,0.112]
[1757077736007,2.24029392,4463.7,4462.3,6.24098262]
[1757077736195,2.24039457,4463.5,4462.6,2.24084614]
[1757077736396,2.02064437,4463.8,4462.7,2.24078902]
[1757077736597,2.24034411,4463.6,4462.7,2.24074797]
[1757077736802,2.2404331,4463.5,4462.6,2.24083649]
[1757077737013,2.24046591,4463.4,4462.3,6.24095479]
[1757077737214,2.24040225,4463.5,4462.6,2.24080216]
[1757077737511,2.24042812,4463.5,4462.3,4.88357548]
[1757077737707,2.24043282,4463.5,4462.6,2.24080122]
[1757077737873,2.2406219,4463.1,4462.3,4.88357548]
[1757077738081,3.93191228,4463.3,4462.5,2.24089596]
[1757077738384,1.6914,4463.3,4462.6,2.24083901]
[1757077738705,1.6914,4463.3,4462.7,2.24079241]
[1757077738914,1.6914,4463.3,4462.8,2.24073643]
[1757077739122,0.4645,4463.2,4462.7,2.24079164]
[1757077739305,0.4645,4463.2,4462.7,6.52079164]
[1757077739823,0.4645,4463.1,4462.7,6.52079164]
[1757077740112,2.24041372,4463.5,4461.8,0.818]
[1757077740113,3.0,4462.7,4461.8,0.026]
[1757077740312,2.24099339,4462.4,4461.8,0.026]
[1757077740512,3.999,4462.3,4461.8,0.026]
[1757077740684,3.999,4462.4,4461.8,0.026]
[1757077740885,2.24089635,4462.5,4461.8,0.026]
[1757077741215,3.0,4462.5,4461.8,0.026]
[1757077741424,2.24102817,4462.3,4461.8,0.026]
[1757077741713,0.3127,4461.9,4461.8,0.026]
[1757077742218,4.24529769,4461.9,4461.8,0.026]
[1757077742918,3.0,4462.5,4461.8,0.026]
[1757077743130,0.002,4466.2,4462.6,0.792]
[1757077743131,0.025,4463.8,4462.6,0.792]
[1757077743341,0.025,4463.8,4463.7,3.07549392]
[1757077743495,0.025,4463.8,4463.7,11.84789685]
[1757077743694,0.027,4464.8,4464.7,2.23979214]
[1757077744131,0.027,4464.8,4464.7,3.09739006]
[1757077744335,0.027,4464.8,4464.7,4.00861804]
[1757077744621,0.027,4464.8,4464.7,3.96541804]
[1757077745204,0.027,4464.8,4464.7,4.00861804]
[1757077746028,0.027,4464.8,4464.7,4.11981804]
[1757077746521,0.027,4464.8,4464.5,3.999]
[1757077746721,0.027,4464.8,4464.7,2.23979214]
[1757077746889,0.027,4464.8,4464.5,6.23888782]
[1757077747094,0.027,4464.8,4464.5,6.23884597]
[1757077747465,0.027,4464.8,4464.7,2.28299214]
[1757077747726,0.027,4464.8,4464.7,3.92717825]
[1757077748393,0.027,4464.8,4464.7,0.89538611]
[1757077748595,0.027,4464.8,4464.7,2.23979214]
[1757077749942,0.027,4464.8,4464.7,3.09739006]
[1757077750113,0.027,4464.8,4464.7,3.03179214]
[1757077750854,0.027,4464.8,4464.7,3.07499214]
[1757077751030,0.027,4464.8,4464.7,3.09739006]
[1757077751228,0.027,4464.8,4464.7,4.19611575]
[1757077751437,0.027,4464.8,4464.7,5.16691575]
[1757077751634,0.002,4465.3,4465.2,2.23954134]
[1757077751843,0.002,4465.3,4465.2,7.02954134]
[1757077752044,1e-08,4465.4,4465.3,6.03149118]
[1757077752253,1e-08,4465.4,4465.3,8.64059443]
[1757077752420,1e-08,4465.4,4465.3,8.68379443]
[1757077752625,1e-08,4465.4,4465.3,8.75679443]
[1757077752945,1e-08,4465.4,4465.3,12.78179443]
[1757077753751,1e-08,4465.8,4465.7,3.03129059]
[1757077754052,1e-08,4465.8,4465.7,14.66435599]
[1757077754254,1e-08,4465.8,4465.7,15.67835599]
[1757077754432,1e-08,4465.8,4465.7,14.70755599]
[1757077755051,0.00120001,4466.2,4466.1,3.03109003]
[1757077755350,0.00120001,4466.2,4466.1,10.02809003]
[1757077755646,0.00120001,4466.2,4466.1,11.32027028]
[1757077756550,0.00120001,4466.2,4466.1,11.43147028]
[1757077757255,0.00120001,4466.2,4466.1,12.33047028]
[1757077757555,0.002,4466.7,4466.1,12.33047028]
[1757077757556,1e-08,4466.8,4466.7,3.03078926]